[Event "Titled Tuesday Blitz February 07 Early 2023"]
[White "Borges Feria, Yasel"]
[Black "Sanchez, Sebastian Felipe"]
[WhiteFideId "3504921"]
[BlackFideId "4403304"]
[WhiteElo "2439"]
[BlackElo "2427"]
[Result "1-0"]
[Round "09"]
[TimeControl "180+2"]
[Date "2023.02.07"]
[WhiteClock "0:00:14"]
[BlackClock "0:00:07"]

1. e4 {[%clk 0:03:00]}  e6 {[%clk 0:02:59]} 2. d3 {[%clk 0:03:00]}  d5 {[%clk 0:03:00]} 3. Qe2 {[%clk 0:03:00]}  Ne7 {[%clk 0:02:53]} 4. Nf3 {[%clk 0:02:59]}  c5 {[%clk 0:02:53]} 5. g3 {[%clk 0:02:59]}  Nbc6 {[%clk 0:02:53]} 6. Bg2 {[%clk 0:02:59]}  g6 {[%clk 0:02:53]} 7. O-O {[%clk 0:02:59]}  Bg7 {[%clk 0:02:53]} 8. c3 {[%clk 0:02:55]}  O-O {[%clk 0:02:53]} 9. Re1 {[%clk 0:02:50]}  e5 {[%clk 0:02:52]} 10. a3 {[%clk 0:02:43]}  Be6 {[%clk 0:02:40]} 11. b4 {[%clk 0:02:38]}  c4 {[%clk 0:02:39]} 12. dxc4 {[%clk 0:02:35]}  dxc4 {[%clk 0:02:37]} 13. Rd1 {[%clk 0:02:33]}  Qc8 {[%clk 0:02:36]} 14. Nbd2 {[%clk 0:02:28]}  b5 {[%clk 0:02:19]} 15. a4 {[%clk 0:02:25]}  a6 {[%clk 0:02:18]} 16. Nf1 {[%clk 0:02:22]}  h6 {[%clk 0:02:10]} 17. Be3 {[%clk 0:02:14]}  Rd8 {[%clk 0:02:09]} 18. Bb6 {[%clk 0:02:12]}  Rxd1 {[%clk 0:02:08]} 19. Rxd1 {[%clk 0:02:12]}  Qb7 {[%clk 0:02:07]} 20. a5 {[%clk 0:02:11]}  Nc8 {[%clk 0:01:46]} 21. Bc5 {[%clk 0:02:07]}  Bf8 {[%clk 0:01:46]} 22. Bxf8 {[%clk 0:01:46]}  Kxf8 {[%clk 0:01:47]} 23. Ne3 {[%clk 0:01:44]}  N8e7 {[%clk 0:01:44]} 24. h4 {[%clk 0:01:44]}  Kg7 {[%clk 0:01:15]} 25. h5 {[%clk 0:01:36]}  g5 {[%clk 0:01:14]} 26. Kh2 {[%clk 0:01:24]}  f6 {[%clk 0:00:32]} 27. Bh3 {[%clk 0:01:22]}  Bxh3 {[%clk 0:00:32]} 28. Kxh3 {[%clk 0:01:23]}  Rd8 {[%clk 0:00:32]} 29. Kg2 {[%clk 0:01:18]}  Qc8 {[%clk 0:00:23]} 30. Nd5 {[%clk 0:01:06]}  Qe6 {[%clk 0:00:18]} 31. Ne3 {[%clk 0:00:57]}  Qf7 {[%clk 0:00:16]} 32. Nh2 {[%clk 0:00:48]}  Qe8 {[%clk 0:00:13]} 33. Rxd8 {[%clk 0:00:40]}  Nxd8 {[%clk 0:00:11]} 34. Qd1 {[%clk 0:00:37]}  Nf7 {[%clk 0:00:10]} 35. Nhg4 {[%clk 0:00:34]}  Qc6 {[%clk 0:00:10]} 36. Qf3 {[%clk 0:00:31]}  Ng8 {[%clk 0:00:08]} 37. Nf5+ {[%clk 0:00:30]}  Kh7 {[%clk 0:00:08]} 38. Nge3 {[%clk 0:00:26]}  Nd6 {[%clk 0:00:07]} 39. Nd5 {[%clk 0:00:23]}  Qd7 {[%clk 0:00:07]} 40. Nxd6 {[%clk 0:00:23]}  Qxd6 {[%clk 0:00:07]} 41. Qf5+ {[%clk 0:00:24]}  Kg7 {[%clk 0:00:08]} 42. Qg6+ {[%clk 0:00:24]}  Kf8 {[%clk 0:00:08]} 43. Qh7 {[%clk 0:00:21]}  Qe6 {[%clk 0:00:07]} 44. f3 {[%clk 0:00:18]}  Qf7 {[%clk 0:00:06]} 45. Qf5 {[%clk 0:00:18]}  Kg7 {[%clk 0:00:06]} 46. g4 {[%clk 0:00:17]}  Ne7 {[%clk 0:00:05]} 47. Nxe7 {[%clk 0:00:13]}  Qxe7 {[%clk 0:00:06]} 48. Qg6+ {[%clk 0:00:13]}  Kf8 {[%clk 0:00:07]} 49. Qxh6+ {[%clk 0:00:13]}  Ke8 {[%clk 0:00:08]} 50. Qg6+ {[%clk 0:00:13]}  Kd8 {[%clk 0:00:08]} 51. Qg8+ {[%clk 0:00:13]}  Kc7 {[%clk 0:00:07]} 52. Qd5 {[%clk 0:00:14]} 1-0


[Site "https://www.chess.com"]

[Event "Titled Tuesday Blitz February 07 Early 2023"]
[White "Korchmar, Vasiliy"]
[Black "Murzin, Volodar"]
[WhiteFideId "24131750"]
[BlackFideId "44155573"]
[WhiteElo "2438"]
[BlackElo "2604"]
[Result "0-1"]
[Round "09"]
[TimeControl "180+2"]
[Date "2023.02.07"]
[WhiteClock "0:00:02"]
[BlackClock "0:00:20"]

1. e4 {[%clk 0:03:00]}  c6 {[%clk 0:02:57]} 2. d4 {[%clk 0:03:00]}  d5 {[%clk 0:02:58]} 3. e5 {[%clk 0:03:01]}  Bf5 {[%clk 0:02:56]} 4. Nd2 {[%clk 0:03:01]}  e6 {[%clk 0:02:56]} 5. Nb3 {[%clk 0:03:01]}  Ne7 {[%clk 0:02:55]} 6. Nf3 {[%clk 0:03:01]}  h6 {[%clk 0:02:54]} 7. Be2 {[%clk 0:03:01]}  Nd7 {[%clk 0:02:55]} 8. O-O {[%clk 0:02:57]}  Bh7 {[%clk 0:02:55]} 9. a4 {[%clk 0:02:57]}  a6 {[%clk 0:02:55]} 10. a5 {[%clk 0:02:52]}  Nc8 {[%clk 0:02:55]} 11. c4 {[%clk 0:02:40]}  dxc4 {[%clk 0:02:53]} 12. Bxc4 {[%clk 0:02:41]}  Be7 {[%clk 0:02:54]} 13. Be3 {[%clk 0:02:33]}  Na7 {[%clk 0:02:52]} 14. Qd2 {[%clk 0:02:22]}  Nb5 {[%clk 0:02:49]} 15. Rfd1 {[%clk 0:02:21]}  O-O {[%clk 0:02:46]} 16. Rac1 {[%clk 0:02:02]}  Kh8 {[%clk 0:02:35]} 17. h3 {[%clk 0:01:55]}  Nc7 {[%clk 0:02:34]} 18. Bd3 {[%clk 0:01:25]}  Bxd3 {[%clk 0:02:28]} 19. Qxd3 {[%clk 0:01:26]}  Nd5 {[%clk 0:02:28]} 20. Bd2 {[%clk 0:01:27]}  Qe8 {[%clk 0:02:18]} 21. Re1 {[%clk 0:01:19]}  f5 {[%clk 0:02:11]} 22. exf6 {[%clk 0:01:19]}  Bxf6 {[%clk 0:02:11]} 23. Qe4 {[%clk 0:01:07]}  Rf7 {[%clk 0:01:49]} 24. Qxe6 {[%clk 0:01:03]}  Re7 {[%clk 0:01:45]} 25. Qf5 {[%clk 0:01:02]}  Nf8 {[%clk 0:01:43]} 26. Nc5 {[%clk 0:00:58]}  Qf7 {[%clk 0:01:40]} 27. Rxe7 {[%clk 0:00:50]}  Nxe7 {[%clk 0:01:39]} 28. Qg4 {[%clk 0:00:50]}  Nd5 {[%clk 0:01:32]} 29. Re1 {[%clk 0:00:45]}  b6 {[%clk 0:01:12]} 30. axb6 {[%clk 0:00:43]}  Nxb6 {[%clk 0:01:13]} 31. Ne5 {[%clk 0:00:41]}  Qd5 {[%clk 0:01:13]} 32. Bc3 {[%clk 0:00:36]}  Nc4 {[%clk 0:01:07]} 33. Nxc4 {[%clk 0:00:34]}  Qxc4 {[%clk 0:01:08]} 34. Ne4 {[%clk 0:00:29]}  Nh7 {[%clk 0:01:02]} 35. Qg6 {[%clk 0:00:21]}  Qd5 {[%clk 0:00:52]} 36. Nxf6 {[%clk 0:00:15]}  Nxf6 {[%clk 0:00:51]} 37. Re5 {[%clk 0:00:12]}  Qd7 {[%clk 0:00:44]} 38. d5 {[%clk 0:00:11]}  Nxd5 {[%clk 0:00:42]} 39. Bd4 {[%clk 0:00:03]}  Kg8 {[%clk 0:00:25]} 40. Re6 {[%clk 0:00:02]}  Nf4 {[%clk 0:00:20]} 0-1


[Site "https://www.chess.com"]

[Event "Titled Tuesday Blitz February 07 Early 2023"]
[White "Salimova, Nurgyul"]
[Black "Janaszak, Dawid"]
[WhiteFideId "2915138"]
[BlackFideId "1119206"]
[WhiteElo "2391"]
[BlackElo "2316"]
[Result "0-1"]
[Round "09"]
[TimeControl "180+2"]
[Date "2023.02.07"]
[WhiteClock "0:00:05"]
[BlackClock "0:00:22"]

1. d4 {[%clk 0:03:00]}  d5 {[%clk 0:02:55]} 2. Nf3 {[%clk 0:03:01]}  Nf6 {[%clk 0:02:54]} 3. Bf4 {[%clk 0:03:01]}  c5 {[%clk 0:02:52]} 4. e3 {[%clk 0:02:58]}  cxd4 {[%clk 0:02:51]} 5. exd4 {[%clk 0:02:58]}  Nc6 {[%clk 0:02:52]} 6. c3 {[%clk 0:02:57]}  Bg4 {[%clk 0:02:47]} 7. Nbd2 {[%clk 0:02:57]}  e6 {[%clk 0:02:46]} 8. Bd3 {[%clk 0:02:54]}  Bd6 {[%clk 0:02:45]} 9. Bg5 {[%clk 0:02:51]}  h6 {[%clk 0:02:41]} 10. Bh4 {[%clk 0:02:50]}  O-O {[%clk 0:02:37]} 11. Qe2 {[%clk 0:02:35]}  Be7 {[%clk 0:02:30]} 12. h3 {[%clk 0:02:21]}  Bf5 {[%clk 0:02:27]} 13. Bxf5 {[%clk 0:02:20]}  exf5 {[%clk 0:02:28]} 14. Bxf6 {[%clk 0:02:18]}  Bxf6 {[%clk 0:02:28]} 15. O-O {[%clk 0:02:18]}  Re8 {[%clk 0:02:22]} 16. Qd3 {[%clk 0:02:18]}  g6 {[%clk 0:02:21]} 17. Rfe1 {[%clk 0:02:16]}  Qd6 {[%clk 0:02:20]} 18. Qb5 {[%clk 0:02:12]}  Qd7 {[%clk 0:02:09]} 19. Nb3 {[%clk 0:02:10]}  b6 {[%clk 0:01:42]} 20. Nbd2 {[%clk 0:02:10]}  Rad8 {[%clk 0:01:33]} 21. Rxe8+ {[%clk 0:02:08]}  Rxe8 {[%clk 0:01:30]} 22. Re1 {[%clk 0:02:09]}  Rxe1+ {[%clk 0:01:27]} 23. Nxe1 {[%clk 0:02:09]}  Qe6 {[%clk 0:01:27]} 24. Nef3 {[%clk 0:02:01]}  g5 {[%clk 0:01:26]} 25. Nf1 {[%clk 0:01:59]}  f4 {[%clk 0:01:22]} 26. Qa4 {[%clk 0:00:57]}  Kg7 {[%clk 0:01:20]} 27. Qd1 {[%clk 0:00:49]}  Na5 {[%clk 0:01:15]} 28. b3 {[%clk 0:00:47]}  Nb7 {[%clk 0:01:11]} 29. Ne1 {[%clk 0:00:38]}  Nd6 {[%clk 0:01:11]} 30. Nd3 {[%clk 0:00:38]}  Ne4 {[%clk 0:01:11]} 31. Qc2 {[%clk 0:00:32]}  Qc6 {[%clk 0:01:10]} 32. Nb4 {[%clk 0:00:32]}  Qxc3 {[%clk 0:01:09]} 33. Qxc3 {[%clk 0:00:29]}  Nxc3 {[%clk 0:01:10]} 34. Nc6 {[%clk 0:00:27]}  Nxa2 {[%clk 0:01:05]} 35. Nxa7 {[%clk 0:00:27]}  Bxd4 {[%clk 0:01:05]} 36. Nc6 {[%clk 0:00:25]}  Bc5 {[%clk 0:01:02]} 37. Nh2 {[%clk 0:00:24]}  Nc1 {[%clk 0:00:58]} 38. b4 {[%clk 0:00:24]}  Bd6 {[%clk 0:00:54]} 39. Kf1 {[%clk 0:00:21]}  Nd3 {[%clk 0:00:50]} 40. b5 {[%clk 0:00:22]}  Bc5 {[%clk 0:00:49]} 41. f3 {[%clk 0:00:18]}  f5 {[%clk 0:00:44]} 42. Ke2 {[%clk 0:00:18]}  Nb2 {[%clk 0:00:42]} 43. Nf1 {[%clk 0:00:17]}  Nc4 {[%clk 0:00:41]} 44. Nd8 {[%clk 0:00:12]}  Kf6 {[%clk 0:00:38]} 45. Nd2 {[%clk 0:00:06]}  Nd6 {[%clk 0:00:38]} 46. Nc6 {[%clk 0:00:03]}  Nxb5 {[%clk 0:00:38]} 47. Kd3 {[%clk 0:00:04]}  Nd6 {[%clk 0:00:37]} 48. Nb3 {[%clk 0:00:04]}  h5 {[%clk 0:00:34]} 49. Nb8 {[%clk 0:00:04]}  g4 {[%clk 0:00:32]} 50. Nd7+ {[%clk 0:00:04]}  Kg5 {[%clk 0:00:31]} 51. Ndxc5 {[%clk 0:00:03]}  bxc5 {[%clk 0:00:32]} 52. Nxc5 {[%clk 0:00:04]}  gxh3 {[%clk 0:00:31]} 53. gxh3 {[%clk 0:00:05]}  Kh4 {[%clk 0:00:30]} 54. Kd4 {[%clk 0:00:05]}  Kg3 {[%clk 0:00:31]} 55. Ke5 {[%clk 0:00:05]}  Kxf3 {[%clk 0:00:27]} 56. Kxd6 {[%clk 0:00:04]}  Kg3 {[%clk 0:00:28]} 57. Kxd5 {[%clk 0:00:03]}  f3 {[%clk 0:00:27]} 58. Nd3 {[%clk 0:00:04]}  f2 {[%clk 0:00:26]} 59. Nxf2 {[%clk 0:00:04]}  Kxf2 {[%clk 0:00:26]} 60. Ke5 {[%clk 0:00:05]}  Kg3 {[%clk 0:00:22]} 61. h4 {[%clk 0:00:05]}  f4 {[%clk 0:00:22]} 0-1


[Site "https://www.chess.com"]

[Event "Titled Tuesday Blitz February 07 Early 2023"]
[White "Poliakova, Varvara"]
[Black "Shipov, Sergei"]
[WhiteFideId "13518313"]
[BlackFideId "4113624"]
[WhiteElo "2010"]
[BlackElo "2541"]
[Result "1-0"]
[Round "09"]
[TimeControl "180+2"]
[Date "2023.02.07"]
[WhiteClock "0:02:10"]
[BlackClock "0:02:41"]

1. e4 {[%clk 0:03:00]}  e6 {[%clk 0:02:59]} 2. d4 {[%clk 0:03:00]}  d5 {[%clk 0:02:59]} 3. Nd2 {[%clk 0:03:00]}  Be7 {[%clk 0:02:59]} 4. c3 {[%clk 0:02:59]}  c5 {[%clk 0:02:59]} 5. Ngf3 {[%clk 0:02:57]}  cxd4 {[%clk 0:02:58]} 6. Nxd4 {[%clk 0:02:56]}  Nc6 {[%clk 0:02:55]} 7. Nxc6 {[%clk 0:02:41]}  bxc6 {[%clk 0:02:55]} 8. Bd3 {[%clk 0:02:41]}  Nf6 {[%clk 0:02:55]} 9. O-O {[%clk 0:02:40]}  O-O {[%clk 0:02:55]} 10. e5 {[%clk 0:02:37]}  Nd7 {[%clk 0:02:54]} 11. Nf3 {[%clk 0:02:35]}  a5 {[%clk 0:02:49]} 12. Bb1 {[%clk 0:02:21]}  a4 {[%clk 0:02:44]} 13. Qc2 {[%clk 0:02:21]}  g6 {[%clk 0:02:43]} 14. Bh6 {[%clk 0:02:20]}  Re8 {[%clk 0:02:43]} 15. Re1 {[%clk 0:02:10]}  Qb6 {[%clk 0:02:41]} 1-0


[Site "https://www.chess.com"]

[Event "Titled Tuesday Blitz February 07 Early 2023"]
[White "Ilkhomi, Jaloliddin"]
[Black "Matinian, Nikita"]
[WhiteFideId "14700948"]
[BlackFideId "24129100"]
[WhiteElo "1997"]
[BlackElo "2407"]
[Result "1-0"]
[Round "09"]
[TimeControl "180+2"]
[Date "2023.02.07"]
[WhiteClock "0:00:11"]
[BlackClock "0:00:07"]

1. d4 {[%clk 0:03:00]}  d6 {[%clk 0:02:57]} 2. Nf3 {[%clk 0:03:00]}  g6 {[%clk 0:02:57]} 3. c3 {[%clk 0:02:56]}  f5 {[%clk 0:02:55]} 4. h3 {[%clk 0:02:46]}  Nf6 {[%clk 0:02:55]} 5. Bf4 {[%clk 0:02:43]}  Bg7 {[%clk 0:02:55]} 6. Nbd2 {[%clk 0:02:44]}  Nc6 {[%clk 0:02:55]} 7. e3 {[%clk 0:02:43]}  O-O {[%clk 0:02:45]} 8. Bc4+ {[%clk 0:02:43]}  Kh8 {[%clk 0:02:41]} 9. Ng5 {[%clk 0:02:38]}  d5 {[%clk 0:02:34]} 10. Bd3 {[%clk 0:02:37]}  h6 {[%clk 0:02:33]} 11. Ngf3 {[%clk 0:02:37]}  Ne4 {[%clk 0:02:31]} 12. Qe2 {[%clk 0:02:27]}  g5 {[%clk 0:02:28]} 13. Bh2 {[%clk 0:02:27]}  Be6 {[%clk 0:02:25]} 14. Ne5 {[%clk 0:02:09]}  Nxe5 {[%clk 0:02:23]} 15. Bxe5 {[%clk 0:02:10]}  Bxe5 {[%clk 0:02:19]} 16. dxe5 {[%clk 0:02:08]}  c5 {[%clk 0:02:18]} 17. g4 {[%clk 0:01:45]}  Nxd2 {[%clk 0:02:16]} 18. Kxd2 {[%clk 0:01:02]}  d4 {[%clk 0:01:38]} 19. Kc2 {[%clk 0:00:51]}  dxc3 {[%clk 0:01:17]} 20. gxf5 {[%clk 0:00:34]}  Bxf5 {[%clk 0:01:12]} 21. Bxf5 {[%clk 0:00:27]}  Rxf5 {[%clk 0:01:13]} 22. bxc3 {[%clk 0:00:26]}  Qd7 {[%clk 0:00:51]} 23. h4 {[%clk 0:00:22]}  Qa4+ {[%clk 0:00:51]} 24. Kb2 {[%clk 0:00:22]}  Raf8 {[%clk 0:00:49]} 25. Rh2 {[%clk 0:00:20]}  g4 {[%clk 0:00:48]} 26. h5 {[%clk 0:00:15]}  Rxe5 {[%clk 0:00:44]} 27. Rg1 {[%clk 0:00:15]}  Rg5 {[%clk 0:00:27]} 28. Rhg2 {[%clk 0:00:15]}  Rfg8 {[%clk 0:00:27]} 29. Qd3 {[%clk 0:00:14]}  c4 {[%clk 0:00:27]} 30. Qd4+ {[%clk 0:00:14]}  R8g7 {[%clk 0:00:25]} 31. Rxg4 {[%clk 0:00:13]}  Qb5+ {[%clk 0:00:20]} 32. Ka1 {[%clk 0:00:14]}  Kh7 {[%clk 0:00:06]} 33. Rxg5 {[%clk 0:00:10]}  Rxg5 {[%clk 0:00:05]} 34. Rxg5 {[%clk 0:00:08]}  Qxg5 {[%clk 0:00:06]} 35. Qe4+ {[%clk 0:00:08]}  Kh8 {[%clk 0:00:06]} 36. Qd4+ {[%clk 0:00:07]}  Kh7 {[%clk 0:00:05]} 37. Qe4+ {[%clk 0:00:07]}  Kg7 {[%clk 0:00:04]} 38. Qxb7 {[%clk 0:00:07]}  Qg1+ {[%clk 0:00:04]} 39. Kb2 {[%clk 0:00:07]}  Qxf2+ {[%clk 0:00:05]} 40. Ka3 {[%clk 0:00:08]}  Qxe3 {[%clk 0:00:05]} 41. Qg2+ {[%clk 0:00:08]}  Kf8 {[%clk 0:00:03]} 42. Qg6 {[%clk 0:00:08]}  Qg5 {[%clk 0:00:03]} 43. Qe4 {[%clk 0:00:03]}  Qa5+ {[%clk 0:00:02]} 44. Kb2 {[%clk 0:00:03]}  Qb6+ {[%clk 0:00:03]} 45. Ka1 {[%clk 0:00:03]}  Qc5 {[%clk 0:00:02]} 46. Qh7 {[%clk 0:00:03]}  Qg1+ {[%clk 0:00:01]} 47. Kb2 {[%clk 0:00:02]}  Qg7 {[%clk 0:00:02]} 48. Qf5+ {[%clk 0:00:02]}  Qf6 {[%clk 0:00:02]} 49. Qc8+ {[%clk 0:00:03]}  Kg7 {[%clk 0:00:02]} 50. Qxc4 {[%clk 0:00:04]}  Qf2+ {[%clk 0:00:02]} 51. Kb3 {[%clk 0:00:04]}  Qb6+ {[%clk 0:00:02]} 52. Kc2 {[%clk 0:00:05]}  Qf6 {[%clk 0:00:02]} 53. Qe2 {[%clk 0:00:04]}  Qf5+ {[%clk 0:00:02]} 54. Kb2 {[%clk 0:00:05]}  e5 {[%clk 0:00:03]} 55. a4 {[%clk 0:00:05]}  e4 {[%clk 0:00:03]} 56. c4 {[%clk 0:00:05]}  Kf6 {[%clk 0:00:03]} 57. Kc3 {[%clk 0:00:05]}  Ke5 {[%clk 0:00:03]} 58. Qe3 {[%clk 0:00:03]}  Qf3 {[%clk 0:00:03]} 59. Kd2 {[%clk 0:00:04]}  Qg2+ {[%clk 0:00:02]} 60. Kc3 {[%clk 0:00:04]}  Qf3 {[%clk 0:00:02]} 61. Kd2 {[%clk 0:00:05]}  Qxe3+ {[%clk 0:00:02]} 62. Kxe3 {[%clk 0:00:05]}  a5 {[%clk 0:00:03]} 63. c5 {[%clk 0:00:05]}  Kd5 {[%clk 0:00:03]} 64. c6 {[%clk 0:00:06]}  Kxc6 {[%clk 0:00:03]} 65. Kxe4 {[%clk 0:00:07]}  Kc5 {[%clk 0:00:03]} 66. Kf5 {[%clk 0:00:07]}  Kb4 {[%clk 0:00:04]} 67. Kg6 {[%clk 0:00:08]}  Kxa4 {[%clk 0:00:05]} 68. Kxh6 {[%clk 0:00:09]}  Kb3 {[%clk 0:00:05]} 69. Kg6 {[%clk 0:00:09]}  a4 {[%clk 0:00:06]} 70. h6 {[%clk 0:00:09]}  a3 {[%clk 0:00:07]} 71. h7 {[%clk 0:00:10]}  Kb2 {[%clk 0:00:07]} 72. h8=Q+ {[%clk 0:00:11]}  Kb1 {[%clk 0:00:07]} 73. Qb8+ {[%clk 0:00:11]}  Ka1 {[%clk 0:00:07]} 74. Qe5+ {[%clk 0:00:11]}  Kb1 {[%clk 0:00:07]} 75. Qe1+ {[%clk 0:00:12]}  Kb2 {[%clk 0:00:06]} 76. Qb4+ {[%clk 0:00:12]}  Ka2 {[%clk 0:00:07]} 77. Kf5 {[%clk 0:00:11]} 1-0


[Site "https://www.chess.com"]

[Event "Titled Tuesday Blitz February 07 Early 2023"]
[White "Jaskolka, Tomasz"]
[Black "Oro, Faustino"]
[WhiteFideId "1170791"]
[BlackFideId "20000197"]
[WhiteElo "2238"]
[BlackElo "2269"]
[Result "0-1"]
[Round "09"]
[TimeControl "180+2"]
[Date "2023.02.07"]
[WhiteClock "0:00:03"]
[BlackClock "0:00:13"]

1. d4 {[%clk 0:03:00]}  Nf6 {[%clk 0:02:59]} 2. Bf4 {[%clk 0:02:59]}  e6 {[%clk 0:02:56]} 3. e3 {[%clk 0:02:59]}  d5 {[%clk 0:02:56]} 4. c3 {[%clk 0:02:59]}  Bd6 {[%clk 0:02:55]} 5. Bg3 {[%clk 0:02:59]}  O-O {[%clk 0:02:55]} 6. Nd2 {[%clk 0:02:59]}  c5 {[%clk 0:02:56]} 7. Ngf3 {[%clk 0:03:00]}  Qc7 {[%clk 0:02:56]} 8. c4 {[%clk 0:02:58]}  cxd4 {[%clk 0:02:52]} 9. exd4 {[%clk 0:02:56]}  Bxg3 {[%clk 0:02:50]} 10. hxg3 {[%clk 0:02:57]}  Nc6 {[%clk 0:02:43]} 11. Bd3 {[%clk 0:02:54]}  dxc4 {[%clk 0:02:42]} 12. Nxc4 {[%clk 0:02:53]}  Rd8 {[%clk 0:02:35]} 13. Rc1 {[%clk 0:02:33]}  Qe7 {[%clk 0:02:29]} 14. Nce5 {[%clk 0:02:26]}  Nb4 {[%clk 0:01:51]} 15. Bb1 {[%clk 0:02:15]}  h6 {[%clk 0:01:46]} 16. a3 {[%clk 0:02:11]}  Nbd5 {[%clk 0:01:44]} 17. Qd3 {[%clk 0:02:10]}  Bd7 {[%clk 0:01:39]} 18. O-O {[%clk 0:01:56]}  Rac8 {[%clk 0:01:33]} 19. Rfe1 {[%clk 0:01:46]}  Be8 {[%clk 0:01:27]} 20. g4 {[%clk 0:01:30]}  Nf4 {[%clk 0:01:17]} 21. Qd2 {[%clk 0:01:27]}  N6d5 {[%clk 0:01:02]} 22. g3 {[%clk 0:01:19]}  Nh3+ {[%clk 0:01:01]} 23. Kg2 {[%clk 0:01:20]}  Ng5 {[%clk 0:00:56]} 24. Qd3 {[%clk 0:01:14]}  g6 {[%clk 0:00:45]} 25. Nh4 {[%clk 0:00:53]}  Kg7 {[%clk 0:00:41]} 26. f4 {[%clk 0:00:44]}  Nh7 {[%clk 0:00:41]} 27. Rxc8 {[%clk 0:00:42]}  Rxc8 {[%clk 0:00:41]} 28. Nhxg6 {[%clk 0:00:33]}  fxg6 {[%clk 0:00:40]} 29. Nxg6 {[%clk 0:00:33]}  Qf6 {[%clk 0:00:38]} 30. Ne5 {[%clk 0:00:19]}  Nf8 {[%clk 0:00:37]} 31. g5 {[%clk 0:00:18]}  hxg5 {[%clk 0:00:33]} 32. Rh1 {[%clk 0:00:18]}  Bg6 {[%clk 0:00:28]} 33. Nxg6 {[%clk 0:00:18]}  Nxg6 {[%clk 0:00:28]} 34. fxg5 {[%clk 0:00:12]}  Qxg5 {[%clk 0:00:24]} 35. Qe4 {[%clk 0:00:11]}  Ne3+ {[%clk 0:00:16]} 36. Kf3 {[%clk 0:00:11]}  Nf5 {[%clk 0:00:15]} 37. g4 {[%clk 0:00:07]}  Nfh4+ {[%clk 0:00:15]} 38. Kg3 {[%clk 0:00:07]}  Rf8 {[%clk 0:00:15]} 39. Bc2 {[%clk 0:00:05]}  Rf3+ {[%clk 0:00:13]} 40. Kh2 {[%clk 0:00:04]}  Qd2+ {[%clk 0:00:13]} 41. Kg1 {[%clk 0:00:03]}  Qg2# {[%clk 0:00:13]} 0-1


[Site "https://www.chess.com"]

[Event "Titled Tuesday Blitz February 07 Early 2023"]
[White "Chernobay, Artem"]
[Black "Yeritsyan, Hayk"]
[WhiteFideId "4167406"]
[BlackFideId "13307320"]
[WhiteElo "2484"]
[BlackElo "2241"]
[Result "1-0"]
[Round "09"]
[TimeControl "180+2"]
[Date "2023.02.07"]
[WhiteClock "0:00:08"]
[BlackClock "0:00:02"]

1. e4 {[%clk 0:03:00]}  e6 {[%clk 0:02:55]} 2. d3 {[%clk 0:02:59]}  d5 {[%clk 0:02:56]} 3. Nd2 {[%clk 0:02:59]}  c5 {[%clk 0:02:54]} 4. Ngf3 {[%clk 0:02:59]}  Nc6 {[%clk 0:02:46]} 5. g3 {[%clk 0:02:59]}  Nf6 {[%clk 0:02:42]} 6. Bg2 {[%clk 0:02:59]}  Be7 {[%clk 0:02:42]} 7. O-O {[%clk 0:02:58]}  b6 {[%clk 0:02:40]} 8. Re1 {[%clk 0:02:58]}  Bb7 {[%clk 0:02:40]} 9. a3 {[%clk 0:02:54]}  Qd7 {[%clk 0:02:35]} 10. e5 {[%clk 0:02:49]}  Ng4 {[%clk 0:02:32]} 11. Qe2 {[%clk 0:02:33]}  h5 {[%clk 0:02:25]} 12. h3 {[%clk 0:02:24]}  Nh6 {[%clk 0:02:22]} 13. c3 {[%clk 0:02:24]}  Nf5 {[%clk 0:02:21]} 14. b4 {[%clk 0:02:20]}  a5 {[%clk 0:02:17]} 15. bxc5 {[%clk 0:02:16]}  bxc5 {[%clk 0:02:16]} 16. Rb1 {[%clk 0:02:13]}  Ba6 {[%clk 0:02:15]} 17. c4 {[%clk 0:01:52]}  Ncd4 {[%clk 0:02:11]} 18. Nxd4 {[%clk 0:01:46]}  Nxd4 {[%clk 0:02:11]} 19. Qd1 {[%clk 0:01:47]}  h4 {[%clk 0:01:56]} 20. g4 {[%clk 0:01:47]}  O-O {[%clk 0:01:45]} 21. cxd5 {[%clk 0:01:24]}  exd5 {[%clk 0:01:43]} 22. Nf1 {[%clk 0:01:18]}  Rab8 {[%clk 0:01:37]} 23. Rxb8 {[%clk 0:01:04]}  Rxb8 {[%clk 0:01:38]} 24. Ne3 {[%clk 0:01:04]}  Rb3 {[%clk 0:01:29]} 25. g5 {[%clk 0:00:54]}  Bxg5 {[%clk 0:01:22]} 26. Nxd5 {[%clk 0:00:48]}  Rxd3 {[%clk 0:01:19]} 27. Qh5 {[%clk 0:00:29]}  Bxc1 {[%clk 0:01:17]} 28. Rxc1 {[%clk 0:00:29]}  Ne2+ {[%clk 0:01:13]} 29. Qxe2 {[%clk 0:00:29]}  Rxd5 {[%clk 0:01:14]} 30. Qxa6 {[%clk 0:00:27]}  Rd1+ {[%clk 0:01:07]} 31. Rxd1 {[%clk 0:00:23]}  Qxd1+ {[%clk 0:01:08]} 32. Kh2 {[%clk 0:00:22]}  Qd4 {[%clk 0:01:02]} 33. Qa8+ {[%clk 0:00:21]}  Kh7 {[%clk 0:01:01]} 34. Qe4+ {[%clk 0:00:22]}  Kh6 {[%clk 0:00:53]} 35. f4 {[%clk 0:00:19]}  Qf2 {[%clk 0:00:41]} 36. Qf3 {[%clk 0:00:18]}  Qe1 {[%clk 0:00:37]} 37. Qg4 {[%clk 0:00:16]}  g6 {[%clk 0:00:34]} 38. Qf3 {[%clk 0:00:13]}  c4 {[%clk 0:00:34]} 39. Qe4 {[%clk 0:00:11]}  Qg3+ {[%clk 0:00:30]} 40. Kh1 {[%clk 0:00:11]}  c3 {[%clk 0:00:31]} 41. Qc4 {[%clk 0:00:09]}  Qe1+ {[%clk 0:00:23]} 42. Kh2 {[%clk 0:00:09]}  Qd2 {[%clk 0:00:23]} 43. f5 {[%clk 0:00:09]}  g5 {[%clk 0:00:17]} 44. Qxf7 {[%clk 0:00:08]}  Qf4+ {[%clk 0:00:16]} 45. Kh1 {[%clk 0:00:08]}  Qc1+ {[%clk 0:00:16]} 46. Kh2 {[%clk 0:00:09]}  Qf4+ {[%clk 0:00:16]} 47. Kg1 {[%clk 0:00:09]}  Qe3+ {[%clk 0:00:10]} 48. Kf1 {[%clk 0:00:10]}  Qf4+ {[%clk 0:00:11]} 49. Ke2 {[%clk 0:00:10]}  Qxe5+ {[%clk 0:00:12]} 50. Kd3 {[%clk 0:00:10]}  Qg3+ {[%clk 0:00:11]} 51. Kc4 {[%clk 0:00:10]}  Qf4+ {[%clk 0:00:06]} 52. Kxc3 {[%clk 0:00:11]}  Qe5+ {[%clk 0:00:06]} 53. Kc4 {[%clk 0:00:11]}  Qf4+ {[%clk 0:00:06]} 54. Kd5 {[%clk 0:00:10]}  Qd2+ {[%clk 0:00:05]} 55. Ke6 {[%clk 0:00:10]}  Qa2+ {[%clk 0:00:05]} 56. Ke7 {[%clk 0:00:09]}  Qxa3+ {[%clk 0:00:05]} 57. Ke8 {[%clk 0:00:10]}  Qa4+ {[%clk 0:00:05]} 58. Kf8 {[%clk 0:00:10]}  Qb4+ {[%clk 0:00:05]} 59. Kg8 {[%clk 0:00:10]}  Qb8+ {[%clk 0:00:05]} 60. Qf8+ {[%clk 0:00:10]}  Qxf8+ {[%clk 0:00:06]} 61. Kxf8 {[%clk 0:00:11]}  a4 {[%clk 0:00:07]} 62. Bd5 {[%clk 0:00:09]}  a3 {[%clk 0:00:06]} 63. f6 {[%clk 0:00:09]}  g4 {[%clk 0:00:05]} 64. hxg4 {[%clk 0:00:08]}  h3 {[%clk 0:00:06]} 65. f7 {[%clk 0:00:08]}  h2 {[%clk 0:00:07]} 66. Kg8 {[%clk 0:00:08]}  Kg5 {[%clk 0:00:03]} 67. f8=Q {[%clk 0:00:08]}  a2 {[%clk 0:00:03]} 68. Qf5+ {[%clk 0:00:08]}  Kh4 {[%clk 0:00:04]} 69. Qf6+ {[%clk 0:00:07]}  Kg3 {[%clk 0:00:03]} 70. Qf1 {[%clk 0:00:08]}  Kxg4 {[%clk 0:00:03]} 71. Kg7 {[%clk 0:00:08]}  Kg3 {[%clk 0:00:03]} 72. Kf6 {[%clk 0:00:08]}  Kh4 {[%clk 0:00:01]} 73. Kf5 {[%clk 0:00:07]}  Kg3 {[%clk 0:00:02]} 74. Qf3+ {[%clk 0:00:07]}  Kh4 {[%clk 0:00:02]} 75. Qg4# {[%clk 0:00:08]} 1-0


[Site "https://www.chess.com"]